bitfinex/quotes_SOLUSD_20250222
["timestamp","ask_amount","ask_price","bid_price","bid_amount"]
[1740209565693,38.64964886,172.33,172.32,6.875e-05]
[1740209566675,44.45244886,172.33,172.32,6.875e-05]
[1740209572802,25.8028,172.33,172.32,6.875e-05]
[1740209573799,44.45244886,172.33,172.32,6.875e-05]
[1740209591622,44.51544886,172.33,172.32,6.875e-05]
[1740209593062,45.51544886,172.33,172.32,6.875e-05]
[1740209593321,46.51544886,172.33,172.32,6.875e-05]
[1740209594303,49.37279433,172.33,172.32,6.875e-05]
[1740209594798,52.65279433,172.33,172.32,6.875e-05]
[1740209594998,53.65279433,172.33,172.32,6.875e-05]
[1740209597256,52.65279433,172.33,172.32,6.875e-05]
[1740209597421,51.65279433,172.33,172.32,6.875e-05]
[1740209597752,52.65279433,172.33,172.32,6.875e-05]
[1740209597952,53.65279433,172.33,172.32,6.875e-05]
[1740209598336,52.65279433,172.33,172.32,6.875e-05]
[1740209598535,53.65279433,172.33,172.32,6.875e-05]
[1740209599421,52.65279433,172.33,172.32,6.875e-05]
[1740209599749,51.65279433,172.33,172.32,6.875e-05]
[1740209600122,52.65279433,172.33,172.32,6.875e-05]
[1740209600958,53.65279433,172.33,172.32,6.875e-05]
[1740209601137,52.65279433,172.33,172.32,6.875e-05]
[1740209601319,53.65279433,172.33,172.32,6.875e-05]
[1740209601521,52.65279433,172.33,172.32,6.875e-05]
[1740209602756,53.65279433,172.33,172.32,6.875e-05]
[1740209607861,151.29279433,172.33,172.32,6.875e-05]
[1740209608549,160.22788233,172.33,172.32,6.875e-05]
[1740209608746,159.22788233,172.33,172.32,6.875e-05]
[1740209610249,122.15544886,172.33,172.32,6.875e-05]
[1740209612565,24.51544886,172.33,172.32,6.875e-05]
[1740209622673,0.063,172.33,172.32,6.875e-05]
[1740209623550,0.063,172.33,172.32,6.24756875]
[1740209624083,0.063,172.33,172.32,7.89356875]
[1740209629989,20.063,172.33,172.32,6.875e-05]
[1740209631154,25.8658,172.33,172.32,6.875e-05]
[1740209632784,5.8658,172.33,172.32,6.875e-05]
[1740209633162,0.063,172.33,172.32,6.875e-05]
[1740209652616,0.063,172.33,172.32,90.44036875]
[1740209652791,0.063,172.33,172.32,98.40519859]
[1740209652991,0.063,172.33,172.32,99.40519859]
[1740209653192,86.9998,172.42,172.33,1.0]
[1740209653417,5.7998,172.42,172.34,1.0]
[1740209653794,5.7998,172.42,172.33,130.06482984]
[1740209653995,5.7998,172.42,172.33,129.06482984]
[1740209654394,20.2992,172.42,172.33,120.1]
[1740209654897,20.2992,172.42,172.34,4.28536005]
[1740209656417,20.2992,172.42,172.33,120.1]
[1740209657508,101.4992,172.42,172.33,81.5]
[1740209660805,101.5622,172.42,172.33,81.5]
[1740209663520,20.3622,172.42,172.33,81.5]
[1740209664120,20.3622,172.42,172.33,88.3027]
[1740209664323,20.3622,172.42,172.33,89.78260762]
[1740209664818,20.3622,172.42,172.34,4.28348497]
[1740209666037,20.3622,172.42,172.35,4.28348497]
[1740209666705,49.3611,172.42,172.35,4.28348497]
[1740209667608,49.3611,172.42,172.34,4.28348497]
[1740209669427,130.5611,172.42,172.34,4.28348497]
[1740209669916,130.5611,172.42,172.33,89.78260762]
[1740209672109,20.0,172.39,172.33,81.5]
[1740209672305,20.0,172.35,172.32,6.875e-05]
[1740209673609,20.0,172.35,172.33,0.03]
[1740209674829,5.8024,172.34,172.33,0.03]
[1740209678517,5.8024,172.34,172.32,6.875e-05]
[1740209678927,99.84964886,172.33,172.32,6.875e-05]
[1740209679804,19.64964886,172.33,172.32,6.875e-05]
[1740209680309,25.45244886,172.33,172.32,6.875e-05]
[1740209683623,28.40005998,172.33,172.32,6.875e-05]
[1740209687333,27.40005998,172.33,172.32,6.875e-05]
[1740209687535,28.40005998,172.33,172.32,6.875e-05]
[1740209693946,29.40005998,172.33,172.32,6.875e-05]
[1740209706758,20.0,172.29,172.18,8.1303]
[1740209706966,20.0,172.25,172.18,8.1303]
[1740209708268,5.8058,172.24,172.18,8.1303]
[1740209708566,87.0058,172.24,172.18,8.1303]
[1740209710380,5.8048,172.27,172.21,6.2483]
[1740209710683,5.8048,172.27,172.21,20.37812984]
[1740209711554,5.8041,172.29,172.21,20.37812984]
[1740209711771,5.8039,172.3,172.23,6.2483]
[1740209711972,5.8039,172.3,172.24,1.5548]
[1740209714283,20.0,172.29,172.24,1.5548]
[1740209716053,25.8042,172.29,172.24,1.5548]
[1740209717296,0.063,172.33,172.25,6.3111]
[1740209717467,0.063,172.33,172.26,1.5587]
[1740209717654,0.063,172.33,172.26,84.0587]
[1740209717857,0.063,172.33,172.28,1.5587]
[1740209718177,0.063,172.33,172.29,5.8041]
[1740209718384,0.063,172.33,172.29,87.3041]
[1740209718855,0.063,172.33,172.3,6.3111]
[1740209719051,0.063,172.33,172.31,1.5587]
[1740209725809,20.063,172.33,172.27,1.52]
[1740209726171,20.063,172.33,172.26,6.1087]
[1740209726506,20.0,172.29,172.22,7.6287]
[1740209726683,20.0,172.28,172.22,7.6287]
[1740209727165,5.8048,172.27,172.22,7.6287]
[1740209728578,95.709,172.31,172.22,7.6287]
[1740209728783,5.8038,172.3,172.22,7.6287]
[1740209731496,5.8038,172.3,172.22,13.4351]
[1740209731892,5.8038,172.3,172.22,94.9351]
[1740209732708,5.8038,172.3,172.22,89.1287]
[1740209733003,20.3133,172.3,172.22,89.1587]
[1740209735994,5.8038,172.3,172.23,6.8061]
[1740209736377,0.063,172.32,172.25,1.0]
[1740209736611,0.063,172.32,172.25,5.28]
[1740209738112,0.063,172.32,172.26,5.8051]
[1740209738283,0.063,172.32,172.26,91.59214615]
[1740209739185,0.063,172.32,172.27,1.0]
[1740209739504,0.063,172.32,172.28,8.908]
[1740209739706,0.063,172.32,172.3,1.0]
[1740209740011,0.063,172.32,172.31,5.28]
[1740209740190,0.063,172.32,172.31,124.38]
[1740209743821,0.063,172.32,172.31,85.78]
[1740209746996,0.063,172.32,172.31,92.5834]
[1740209748500,0.063,172.32,172.31,96.85480566]
[1740209749909,0.063,172.32,172.31,92.5834]
[1740209753107,0.063,172.32,172.31,96.85325775]
[1740209754624,0.063,172.32,172.31,97.72334586]
[1740209755334,0.063,172.32,172.31,125.4448579]
[1740209755487,0.063,172.32,172.31,163.17476979]
[1740209755821,0.063,172.32,172.31,168.85682705]
[1740209756524,0.063,172.32,172.31,168.88682705]
[1740209764414,0.063,172.33,172.32,20.64964886]
[1740209764631,0.0001,172.33,172.32,163.5073128]
[1740209764916,0.0001,172.33,172.32,164.96151819]
[1740209765735,0.0001,172.33,172.32,170.76461819]
[1740209766525,0.0001,172.33,172.32,175.03447594]
[1740209769507,0.0001,172.33,172.32,182.28363906]
[1740209770420,0.063,172.42,172.41,1.0]
[1740209770602,0.063,172.42,172.41,126.24962251]
[1740209770802,0.063,172.42,172.41,125.38]
[1740209771528,0.063,172.42,172.41,131.1801]
[1740209772118,0.063,172.42,172.41,158.19810593]
[1740209772325,0.063,172.42,172.41,159.19810593]
[1740209774502,0.063,172.42,172.41,163.44673381]
[1740209774908,5.796,172.53,172.44,1.0]
[1740209775118,5.796,172.53,172.44,121.1]
[1740209775429,5.796,172.53,172.46,1.0]
[1740209775729,5.796,172.53,172.47,4.28]
[1740209775925,5.796,172.53,172.47,5.28]
[1740209776127,5.796,172.53,172.48,1.0]
[1740209776330,20.0,172.54,172.48,121.1]
[1740209778022,20.0,172.54,172.48,124.0161116]
[1740209778416,5.796,172.53,172.48,124.0161116]
[1740209778616,20.0,172.54,172.49,1.0]
[1740209778820,25.7958,172.54,172.49,1.0]
[1740209780743,5.7958,172.54,172.49,1.0]
[1740209781609,0.063,172.56,172.49,1.0]
[1740209781817,5.7954,172.55,172.49,9.66446818]
[1740209782416,0.063,172.56,172.49,129.76446818]
[1740209782911,0.063,172.56,172.49,135.56176818]
[1740209785329,0.063,172.56,172.49,129.76446818]
[1740209787439,0.063,172.56,172.49,128.76446818]
[1740209787636,0.063,172.56,172.49,120.1]
[1740209788438,0.063,172.56,172.49,126.8974]
[1740209788823,0.063,172.56,172.51,1.0]
[1740209789229,0.063,172.56,172.51,6.7966]
[1740209790024,0.063,172.56,172.52,1.0]
[1740209790226,0.063,172.56,172.53,5.26]
[1740209790651,0.063,172.56,172.54,1.86901804]
[1740209791146,0.063,172.56,172.54,127.76451804]
[1740209791355,0.063,172.56,172.54,126.8955]
[1740209792323,0.063,172.56,172.54,121.1]
[1740209792552,0.063,172.56,172.54,126.8956]
[1740209793520,0.063,172.56,172.55,1.86893862]
[1740209794025,0.063,172.56,172.55,0.86893862]
[1740209794226,0.063,172.56,172.55,121.96893862]
[1740209794524,0.063,172.56,172.55,121.1]
[1740209796736,0.063,172.56,172.55,126.8954]
[1740209797038,0.063,172.56,172.55,145.54504886]
[1740209797245,0.063,172.56,172.55,153.78033749]
[1740209797635,0.063,172.56,172.55,154.78033749]
[1740209799031,0.063,172.56,172.55,162.02925828]
[1740209799426,0.063,172.56,172.55,206.48669214]
[1740209799649,0.063,172.56,172.55,214.27159214]
[1740209800152,0.063,172.56,172.55,169.81415828]
[1740209804864,0.063,172.56,172.55,187.26415828]
[1740209813459,0.063,172.56,172.55,163.66645828]
[1740209815160,0.063,172.56,172.55,167.92645828]
[1740209820564,0.063,172.56,172.55,166.28925828]
[1740209821867,0.063,172.56,172.55,162.02925828]
[1740209822074,0.063,172.56,172.55,166.28925828]
[1740209822674,0.063,172.56,172.55,162.02925828]
[1740209822888,0.063,172.56,172.55,166.28925828]
[1740209827979,0.063,172.6,172.59,19.64964886]
[1740209828304,0.063,172.6,172.59,148.73768666]
[1740209828485,0.063,172.6,172.59,147.86902805]
[1740209829574,0.063,172.6,172.59,153.66302805]
[1740209830982,0.063,172.65,172.63,21.0]
[1740209831169,0.063,172.65,172.64,2.0]
[1740209831373,0.063,172.65,172.64,29.0795836]
[1740209831585,0.063,172.65,172.64,154.9719836]
[1740209831769,0.063,172.65,172.64,162.22090439]
[1740209832076,0.063,172.72,172.66,19.64964886]
[1740209832278,0.063,172.72,172.66,28.94782946]
[1740209832485,0.063,172.72,172.66,29.94782946]
[1740209832693,0.063,172.72,172.66,174.74675025]
[1740209832903,0.063,172.72,172.66,173.87850439]
[1740209833191,0.063,172.72,172.71,1.0]
[1740209833364,0.063,172.72,172.71,144.00964886]
[1740209834286,0.063,172.72,172.71,125.36]
[1740209837584,0.063,172.72,172.71,124.36]
[1740209837881,0.063,172.74,172.73,22.0]
[1740209838194,0.063,172.74,172.73,50.23629804]
[1740209838716,0.063,172.74,172.73,57.48521883]
[1740209839069,0.063,172.74,172.73,63.27451883]
[1740209841776,0.063,172.74,172.73,183.37451883]
[1740209841977,0.063,172.74,172.73,182.50669328]
[1740209842399,0.063,172.74,172.73,185.41727759]
[1740209843094,0.063,172.74,172.73,124.36]
[1740209843997,0.063,172.74,172.73,120.1]
[1740209844203,0.063,172.74,172.73,81.5]
[1740209850504,0.063,172.74,172.73,87.2893]
[1740209850980,0.063,172.74,172.73,107.93894886]
[1740209851181,0.063,172.74,172.73,115.71300905]
[1740209853088,0.063,172.74,172.73,81.5]
[1740209855691,0.063,172.74,172.71,81.563]
[1740209861922,20.0,172.73,172.71,0.063]
[1740209862097,6.257,172.72,172.71,0.063]
[1740209864121,12.0467,172.72,172.71,0.063]
[1740209865300,1.503,172.71,172.68,81.5]
[1740209865499,20.0,172.69,172.64,81.5]
[1740209867804,5.791,172.68,172.64,81.5]
[1740209868415,20.2686,172.68,172.64,81.5]
[1740209868599,30.0,172.66,172.64,81.5]
[1740209869203,30.0,172.66,172.6,120.1]
[1740209869399,30.0,172.66,172.6,81.5]
[1740209869815,5.792,172.65,172.6,81.5]
[1740209871528,30.0,172.66,172.6,81.5]
[1740209871714,30.0,172.66,172.62,5.793]
[1740209873024,30.0,172.66,172.63,18.64964886]
[1740209874426,30.0,172.66,172.63,138.74964886]
[1740209874727,30.0,172.66,172.63,144.54234886]
[1740209875629,5.7904,172.7,172.63,144.54234886]
[1740209875816,1.503,172.71,172.63,146.54234886]
[1740209876124,20.0,172.73,172.64,9.08624797]
[1740209876306,5.852,172.74,172.66,18.64964886]
[1740209876507,5.852,172.74,172.67,4.26]
[1740209876704,20.0,172.73,172.68,18.64964886]
[1740209876926,0.063,172.74,172.69,1.0]
[1740209877110,0.03,172.71,172.69,1.86819946]
[1740209877728,0.03,172.71,172.69,0.86819946]
[1740209877915,0.03,172.71,172.69,1.86819946]
[1740209878417,0.03,172.71,172.7,5.7903]
[1740209878611,0.03,172.71,172.7,125.8903]
[1740209880926,0.03,172.71,172.7,134.28710352]
[1740209882825,0.03,172.71,172.7,128.49680352]
[1740209883136,0.03,172.71,172.7,81.5]
[1740209886039,0.03,172.71,172.7,87.2903]
[1740209886525,0.03,172.71,172.7,81.5]
[1740209887917,0.03,172.71,172.68,57.24964886]
[1740209887918,0.03,172.71,172.68,81.5]
[1740209889323,1.6077,172.71,172.7,0.063]
[1740209891225,7.3977,172.71,172.7,0.063]
[1740209892254,0.03,172.71,172.7,0.063]
[1740209892919,0.03,172.71,172.7,81.563]
[1740209893324,0.03,172.71,172.7,87.3533]
[1740209894548,0.03,172.71,172.7,81.563]
[1740209895851,0.03,172.71,172.7,0.063]
[1740209896645,0.03,172.71,172.7,5.8533]
[1740209897050,0.03,172.71,172.7,106.00294886]
[1740209897251,0.03,172.71,172.7,115.06938873]
[1740209897560,0.03,172.71,172.7,154.66938873]
[1740209897744,0.03,172.71,172.7,153.80121349]
[1740209899562,0.03,172.71,172.7,154.80121349]
[1740209901860,0.063,172.74,172.73,21.0]
[1740209902051,0.063,172.74,172.73,159.74964886]
[1740209902361,0.063,172.74,172.73,120.1]
[1740209905669,0.063,172.74,172.73,125.8893]
[1740209905967,0.063,172.74,172.73,144.53894886]
[1740209908160,0.063,172.74,172.73,120.1]
[1740209913057,0.063,172.74,172.73,81.5]
[1740209918472,0.063,172.74,172.71,120.1]
[1740209922182,0.063,172.74,172.71,81.5]
[1740209924270,20.0,172.73,172.7,0.063]
[1740209924990,5.7897,172.72,172.71,0.063]
[1740209927091,5.7897,172.72,172.7,0.063]
[1740209930070,35.79,172.71,172.7,0.063]
[1740209936191,50.2651,172.71,172.65,81.5]
[1740209936507,20.0,172.68,172.65,81.5]
[1740209937784,5.7913,172.67,172.65,81.5]
[1740209938101,20.2697,172.67,172.63,120.163]
[1740209940312,20.2697,172.67,172.63,81.563]
[1740209940927,5.7913,172.67,172.63,81.563]
[1740209942109,20.2697,172.67,172.63,81.563]
[1740209942318,14.4784,172.67,172.63,81.563]
[1740209943708,14.4784,172.67,172.63,0.063]
[1740209944517,20.0,172.64,172.63,0.063]
[1740209946419,25.7924,172.64,172.63,0.063]
[1740209957023,25.7924,172.64,172.63,0.0001]
[1740209959921,27.3955,172.64,172.63,0.0001]
[1740209960623,46.04514886,172.64,172.63,0.0001]
[1740209961446,45.6825656,172.64,172.63,0.0001]
[1740209961646,126.8825656,172.64,172.63,0.0001]
[1740209964837,47.6825656,172.64,172.63,0.0001]
[1740209965964,46.6825656,172.64,172.63,0.0001]
[1740209966260,47.6825656,172.64,172.63,0.0001]
[1740209968168,47.6825656,172.64,172.54,0.063]
[1740209968339,20.0,172.59,172.54,0.063]
[1740209969963,5.7944,172.58,172.54,0.063]
[1740209974074,11.62736781,172.57,172.54,0.063]
[1740209974250,11.62736781,172.55,172.54,0.063]
[1740209976257,17.42276781,172.55,172.54,0.063]
[1740209978271,17.42276781,172.55,172.53,0.063]
[1740209978578,11.62736781,172.54,172.53,0.063]
[1740209979866,58.13683905,172.54,172.52,0.063]
[1740209980066,63.93283905,172.53,172.52,0.0001]
[1740209981461,17.42336781,172.53,172.52,0.0001]
[1740209985380,63.93283905,172.53,172.52,0.0001]
[1740209986164,17.42336781,172.53,172.52,0.0001]
[1740209997101,63.93283905,172.53,172.52,0.0001]
[1740209999105,17.42336781,172.53,172.52,0.0001]
[1740210001100,63.93283905,172.53,172.52,0.0001]
[1740210004205,86.84248791,172.53,172.52,0.0001]
[1740210004419,87.84248791,172.53,172.52,0.0001]
[1740210004711,20.0,172.49,172.48,0.0001]
[1740210004889,31.62736781,172.49,172.48,0.0001]
[1740210006204,37.42476781,172.49,172.48,0.0001]
[1740210009014,56.07441667,172.49,172.48,0.0001]
[1740210012206,38.64964886,172.46,172.45,0.0001]
[1740210012520,60.33541667,172.46,172.45,0.0001]
[1740210015628,25.7984,172.46,172.45,0.0001]
[1740210015827,37.42576781,172.46,172.45,0.0001]
[1740210017426,102.58488791,172.46,172.45,0.0001]
[1740210020125,103.58488791,172.46,172.45,0.0001]
[1740210020931,103.64788791,172.46,172.45,0.0001]
[1740210024228,102.64788791,172.46,172.45,0.0001]
[1740210024730,103.64788791,172.46,172.45,0.0001]
[1740210025733,104.64788791,172.46,172.45,0.0001]
[1740210025916,106.17268791,172.46,172.45,0.0001]
[1740210027327,17.42876781,172.37,172.36,0.0001]
[1740210027505,40.33841667,172.37,172.36,0.0001]
[1740210029831,19.64964886,172.34,172.25,81.5]
[1740210030137,11.62736781,172.29,172.23,125.906]
[1740210030305,81.2,172.36,172.24,18.64964886]
[1740210030639,24.565,172.37,172.26,18.64964886]
[1740210030821,11.62736781,172.34,172.27,11.62736781]
[1740210031424,11.62736781,172.33,172.27,120.1]
[1740210031721,11.62736781,172.33,172.27,125.9048]
[1740210032114,11.62736781,172.34,172.27,137.53216781]
[1740210032309,11.62736781,172.35,172.28,11.62736781]
[1740210032510,17.42816781,172.39,172.36,0.03]
[1740210032722,11.62736781,172.38,172.36,0.03]
[1740210033731,11.62736781,172.39,172.36,0.03]
[1740210033911,114.98776781,172.4,172.36,0.03]
[1740210034423,97.56,172.4,172.36,0.03]
[1740210034616,11.62736781,172.41,172.36,0.03]
[1740210035346,17.42756781,172.41,172.36,0.03]
[1740210036613,17.42686781,172.43,172.36,131.75736781]
[1740210037023,11.62736781,172.43,172.36,131.75736781]
[1740210037240,11.62736781,172.44,172.37,11.62736781]
[1740210037431,11.62736781,172.43,172.36,131.75736781]
[1740210038235,11.62736781,172.42,172.37,5.8014]
[1740210038740,11.62736781,172.39,172.36,120.13]
[1740210039034,11.62736781,172.39,172.36,81.53]
[1740210040220,5.8011,172.38,172.36,81.53]
[1740210040626,17.42816781,172.39,172.36,81.53]
[1740210040827,11.62736781,172.4,172.36,81.53]
[1740210041016,11.62736781,172.41,172.36,81.53]
[1740210042537,11.62736781,172.41,172.36,87.3317]
[1740210043221,17.42746781,172.41,172.36,81.53]
[1740210044141,11.62736781,172.4,172.36,81.53]
[1740210044641,11.62736781,172.41,172.36,81.53]
[1740210044840,11.69036781,172.41,172.36,81.53]
[1740210045641,11.62736781,172.4,172.36,81.53]
[1740210046334,0.063,172.41,172.36,81.53]
[1740210046536,0.063,172.41,172.36,87.3317]
[1740210049657,0.063,172.41,172.36,98.95906781]
[1740210049861,0.063,172.41,172.37,30.27701667]
[1740210050164,0.063,172.41,172.37,18.64964886]
[1740210050347,0.063,172.41,172.37,30.27701667]
[1740210051567,0.063,172.41,172.38,5.8011]
[1740210055682,0.063,172.41,172.38,87.3011]
[1740210057258,0.063,172.41,172.38,81.5]
[1740210059265,0.063,172.41,172.38,87.3009]
[1740210066374,11.69036781,172.41,172.38,81.5]
[1740210066573,11.62736781,172.4,172.36,81.53]
[1740210066881,11.62736781,172.39,172.36,81.53]
[1740210067788,17.42826781,172.39,172.36,81.53]
[1740210072890,11.62736781,172.38,172.36,81.53]
[1740210073267,11.62736781,172.37,172.36,0.03]
[1740210074593,17.42876781,172.37,172.36,0.03]
[1740210080103,17.49176781,172.37,172.36,0.03]
[1740210084993,50.64501667,172.37,172.29,81.5]
[1740210085189,11.62736781,172.31,172.27,81.53]
[1740210087299,17.43086781,172.31,172.27,81.53]
[1740210088121,5.8035,172.31,172.27,81.53]
[1740210089215,5.8031,172.32,172.27,81.53]
[1740210089914,11.62736781,172.33,172.27,81.53]
[1740210090095,17.42986781,172.34,172.27,98.96196781]
[1740210090283,17.42986781,172.34,172.27,87.3346]
[1740210090483,17.42986781,172.34,172.27,98.96196781]
[1740210091987,17.42986781,172.34,172.27,97.39336181]
[1740210095692,98.69186781,172.37,172.3,11.62736781]
[1740210096018,17.49186781,172.37,172.3,91.58876181]
[1740210096825,17.49186781,172.37,172.31,5.8034]
[1740210098497,11.62736781,172.36,172.3,85.765094]
[1740210100717,11.69036781,172.37,172.3,85.765094]
[1740210101016,0.063,172.37,172.31,11.62736781]
[1740210101909,0.063,172.37,172.32,5.8031]
[1740210103311,0.063,172.36,172.32,5.8031]
[1740210106027,0.063,172.36,172.32,17.43046781]
[1740210106327,0.063,172.36,172.32,97.39186181]
[1740210106825,0.063,172.36,172.33,11.62736781]
[1740210107015,0.063,172.36,172.34,20.29310522]
[1740210107209,0.063,172.36,172.34,88.62713141]
[1740210107421,0.063,172.36,172.34,79.961394]
[1740210117418,0.063,172.36,172.34,85.763694]
[1740210117616,0.063,172.36,172.34,97.39106181]
[1740210118013,0.063,172.36,172.34,79.961394]
[1740210121139,11.69036781,172.36,172.34,79.961394]
[1740210121516,5.8021,172.35,172.34,79.961394]
[1740210122433,0.063,172.36,172.34,79.961394]
[1740210122619,11.69036781,172.36,172.34,79.961394]
[1740210123145,11.62736781,172.35,172.34,79.961394]
[1740210123722,17.42946781,172.35,172.34,79.961394]
[1740210123923,17.42946781,172.35,172.29,123.065394]
[1740210130040,11.69036781,172.36,172.29,123.065394]
[1740210131347,5.8021,172.35,172.29,123.065394]
[1740210134545,11.62736781,172.35,172.29,123.065394]
[1740210135451,11.62736781,172.35,172.29,79.961394]
[1740210135830,11.62736781,172.33,172.29,79.961394]
[1740210136029,11.62736781,172.31,172.29,79.961394]
[1740210136763,5.8038,172.3,172.29,79.961394]
[1740210138052,5.8038,172.3,172.27,79.991394]
[1740210138259,17.43116781,172.3,172.27,79.991394]
[1740210139231,5.8038,172.3,172.27,79.991394]
[1740210140360,5.8034,172.31,172.27,79.991394]
[1740210142041,17.43076781,172.31,172.27,79.991394]
[1740210146160,11.62736781,172.3,172.27,79.991394]
[1740210146565,17.43076781,172.31,172.27,79.991394]
[1740210149655,11.62736781,172.3,172.27,79.991394]
[1740210149853,11.62736781,172.29,172.27,79.991394]
[1740210150654,11.62736781,172.28,172.27,79.991394]
[1740210151355,17.43186781,172.28,172.27,79.991394]
[1740210153683,17.43186781,172.28,172.27,0.03]
[1740210155876,11.62736781,172.29,172.27,0.03]
[1740210156687,17.49376781,172.31,172.27,0.03]
[1740210157479,5.8664,172.31,172.27,0.03]
[1740210158066,0.063,172.31,172.27,0.03]
[1740210159056,0.063,172.31,172.27,11.65736781]
[1740210159478,0.063,172.31,172.28,11.62736781]
[1740210159661,0.063,172.31,172.28,128.88876181]
[1740210160066,0.063,172.31,172.28,134.69286181]
[1740210160382,0.063,172.31,172.28,117.261394]
[1740210161071,0.063,172.31,172.28,134.69316181]
[1740210161485,0.063,172.31,172.28,97.39316181]
[1740210164265,0.063,172.31,172.28,79.961394]
[1740210169474,11.62736781,172.3,172.28,79.961394]
[1740210170681,11.62736781,172.3,172.27,0.03]
[1740210171299,5.804,172.3,172.27,0.03]
[1740210172698,17.43136781,172.3,172.27,0.03]
[1740210174189,5.804,172.3,172.27,0.03]
[1740210174571,5.8664,172.31,172.27,0.03]
[1740210176104,11.69036781,172.31,172.27,0.03]
[1740210177104,0.063,172.31,172.27,0.03]
[1740210177474,11.69036781,172.31,172.27,0.03]
[1740210178887,5.8038,172.3,172.27,0.03]
[1740210187214,0.063,172.31,172.27,0.03]
[1740210187893,0.063,172.31,172.27,18.67964886]
[1740210188090,0.063,172.31,172.27,135.94104286]
[1740210188404,0.063,172.31,172.3,30.27701667]
[1740210189709,0.063,172.31,172.3,36.08081667]
[1740210192507,0.063,172.31,172.3,153.34221067]
[1740210192680,0.063,172.31,172.3,117.261394]
[1740210198205,0.063,172.31,172.3,79.961394]
[1740210201489,0.063,172.31,172.3,85.765194]
[1740210203127,0.063,172.31,172.3,116.04221067]
[1740210203419,0.063,172.31,172.3,124.60527755]
[1740210203614,0.063,172.31,172.3,161.90527755]
[1740210208409,0.063,172.31,172.3,162.90527755]
[1740210214129,0.063,172.31,172.3,170.19306112]
[1740210214505,0.0001,172.31,172.3,171.19306112]
[1740210214903,0.0001,172.31,172.3,176.52142822]
[1740210217806,0.0001,172.31,172.3,175.52142822]
[1740210218123,0.0001,172.31,172.3,174.52142822]
[1740210218430,0.0001,172.31,172.3,117.261394]
[1740210218637,0.0001,172.31,172.3,79.961394]
[1740210222721,0.0001,172.31,172.3,85.765194]
[1740210223108,0.0001,172.31,172.3,79.961394]
[1740210231423,0.0001,172.31,172.3,79.991394]
[1740210232241,0.0001,172.31,172.3,116.07221067]
[1740210234526,0.0001,172.31,172.3,161.54370891]
[1740210242368,0.0001,172.31,172.3,168.83149248]
[1740210243553,0.063,172.36,172.34,20.0]
[1740210243751,0.063,172.36,172.35,38.44851491]
[1740210244761,0.063,172.36,172.35,44.25061491]
[1740210248778,0.063,172.36,172.35,161.51200891]
[1740210250568,0.063,172.36,172.35,164.34831024]
[1740210255884,0.063,172.37,172.36,18.64964886]
[1740210256059,0.063,172.37,172.36,164.86748179]
[1740210256263,1.6177,172.44,172.4,30.27701667]
[1740210256472,1.6177,172.44,172.4,151.79841067]
[1740210257263,1.6177,172.44,172.4,157.59881067]
[1740210257667,6.4035,172.46,172.4,157.59881067]
[1740210257963,6.4035,172.46,172.4,166.00864225]
[1740210259384,18.03086781,172.46,172.4,154.38127444]
[1740210260258,23.82936781,172.46,172.4,154.38127444]
[1740210261354,6.4035,172.46,172.4,166.00864225]
[1740210261554,6.4035,172.46,172.4,154.38127444]
[1740210262394,12.2019,172.46,172.4,154.38127444]
[1740210262687,6.4035,172.46,172.4,154.38127444]
[1740210264086,12.2019,172.46,172.4,154.38127444]